[Event "WSTCC-50 2024"]
[Site "Krakow"]
[Date "2024.07.05"]
[Round "4.21"]
[White "Rasalingam, Haran"]
[Black "Mertens, Marc"]
[Result "0-1"]
[ECO "B24"]
[WhiteElo "1944"]
[BlackElo "2142"]
[Annotator "RC"]
[PlyCount "90"]
[EventDate "2024.07.01"]
[EventType "team-tourn"]
[EventCountry "POL"]
[SourceTitle "playchess.com"]
[Source "ChessBase"]
[SourceQuality "1"]
[TimeControl "40/5400+30:1800+30"]

1. e4 {[%emt 0:00:32]} c5 {[%emt 0:00:05]} 2. Nc3 {[%emt 0:00:13]} Nc6 {[%emt 0:01:16]} 3. Bb5 {[%emt 0:00:12]} Nd4 {[%emt 0:00:10]} 4. Nf3 {[%emt 0:00:08]} Nxb5 {[%emt 0:01:50]} 5. Nxb5 {[%emt 0:00:15]} e6 {[%emt 0:06:01]} 6. d4 {[%emt 0:02:10]} a6 {[%emt 0:13:26]} 7. Nc3 {[%emt 0:00:08]} b5 {[%emt 0:11:14]} 8. O-O {[%emt 0:01:48]} Bb7 {[%emt 0:07:42]} 9. Re1 {[%emt 0:00:11]} d6 {[%emt 0:04:39]} 10. a4 {[%emt 0:12:27]} b4 {[%emt 0:06:53]} 11. Ne2 {[%emt 0:00:12]} Nf6 {[%emt 0:10:00]} 12. Bg5 {[%emt 0:00:46]} Bxe4 {[%emt 0:06:06]} 13. Ng3 {[%emt 0:00:08]} Bg6 {[%emt 0:00:17]} 14. d5 {[%emt 0:01:52]} e5 {[%emt 0:01:30]} 15. Nxe5 {[%emt 0:08:22]} dxe5 {[%emt 0:00:05]} 16. Rxe5+ {[%emt 0:00:14]} Kd7 {[%emt 0:00:35]} 17. d6 {[%emt 0:00:33]} Bxd6 {[%emt 0:02:22]} 18. Rxc5 {[%emt 0:07:18]} Qb6 {[%emt 0:01:11]} 19. Be3 {[%emt 0:01:56]} Rhe8 {[%emt 0:07:10]} 20. Rb5 {[%emt 0:03:19]} Qc6 {[%emt 0:01:11]} 21. Rxb4 {[%emt 0:00:54]} Rab8 {[%emt 0:02:19]} 22. Rd4 {[%emt 0:05:23]} Re6 {[%emt 0:00:25]} 23. h4 {[%emt 0:03:36]} Qxc2 {[%emt 0:01:58]} 24. Qf1 {[%emt 0:00:50]} Qxb2 {[%emt 0:03:16]} 25. Rad1 {[%emt 0:03:55]} Qb7 {[%emt 0:02:38]} 26. Bf4 {[%emt 0:02:39]} Ne8 {[%emt 0:00:05]} 27. h5 {[%emt 0:10:12]} Bc2 {[%emt 0:00:07]} 28. Rc1 {[%emt 0:00:06]} Rc8 {[%emt 0:00:13]} 29. Rd2 {[%emt 0:02:35]} Bxa4 {[%emt 0:01:40]} 30. Rb1 {[%emt 0:00:34]} Bb5 {[%emt 0:00:09]} 31. Qd1 {[%emt 0:00:18]} g6 {[%emt 0:00:39]} 32. Qg4 {[%emt 0:05:33]} Rc6 {[%emt 0:02:01]} 33. hxg6 {[%emt 0:01:56]} hxg6 {[%emt 0:00:06]} 34. Ne2 {[%emt 0:06:43]} Nf6 {[%emt 0:03:19]} 35. Qh3 {[%emt 0:10:22]} Ke7 {[%emt 0:01:38]} 36. Bg5 {[%emt 0:02:52]} Bc5 {[%emt 0:03:05]} 37. Nf4 {[%emt 0:00:47]} Rcd6 {[%emt 0:00:17]} 38. Rbd1 {[%emt 0:00:50]} Qb6 {[%emt 0:00:22]} 39. Nd5+ {[%emt 0:04:12]} Rxd5 {[%emt 0:00:05]} 40. Rxd5 {[%emt 0:00:05]} Bxf2+ {[%emt 0:00:42]} 41. Kh1 {[%emt 0:31:01]} Be3 {[%emt 0:05:32]} 42. Bh4 {[%emt 0:00:00]} Bc6 {[%emt 0:09:16]} 43. R5d3 {[%emt 0:00:00]} g5 {[%emt 0:02:45]} 44. Re1 {[%emt 0:00:00]} Bf4 {[%emt 0:02:41]} 45. Qf5 {[%emt 0:00:00]} Be4 {[%emt 0:04:14]} 0-1

[Event "WSTCC-50 2024"]
[Site "Krakow"]
[Date "2024.07.05"]
[Round "4.22"]
[White "Grawe, Christian"]
[Black "Dawson, Alastair"]
[Result "1-0"]
[ECO "C10"]
[WhiteElo "2232"]
[BlackElo "1850"]
[Annotator "RC"]
[PlyCount "101"]
[EventDate "2024.07.01"]
[EventType "team-tourn"]
[EventCountry "POL"]
[SourceTitle "playchess.com"]
[Source "ChessBase"]
[SourceQuality "1"]
[TimeControl "40/5400+30:1800+30"]

1. e4 {[%emt 0:01:18]} e6 {[%emt 0:00:12]} 2. d4 {[%emt 0:00:07]} d5 {[%emt 0:00:07]} 3. Nc3 {[%emt 0:01:05]} dxe4 {[%emt 0:00:24]} 4. Nxe4 {[%emt 0:00:07]} Bd7 {[%emt 0:00:32]} 5. Nf3 {[%emt 0:00:46]} Bc6 {[%emt 0:00:12]} 6. Bd3 {[%emt 0:00:22]} Nd7 {[%emt 0:00:28]} 7. Bf4 {[%emt 0:10:42]} Be7 {[%emt 0:05:29]} 8. c3 {[%emt 0:04:39]} Ngf6 {[%emt 0:01:07]} 9. Qe2 {[%emt 0:01:08]} Bxe4 {[%emt 0:01:13]} 10. Bxe4 {[%emt 0:00:03]} Nxe4 {[%emt 0:00:02]} 11. Qxe4 {[%emt 0:00:14]} c6 {[%emt 0:00:22]} 12. O-O {[%emt 0:02:22]} O-O {[%emt 0:00:11]} 13. Rfd1 {[%emt 0:03:36]} Qa5 {[%emt 0:01:16]} 14. c4 {[%emt 0:03:30]} Rad8 {[%emt 0:07:01]} 15. a3 {[%emt 0:03:19]} Nf6 {[%emt 0:12:55]} 16. Qc2 {[%emt 0:03:09]} Bd6 {[%emt 0:12:04]} 17. Bg5 {[%emt 0:06:03]} Be7 {[%emt 0:09:12]} 18. b4 {[%emt 0:02:32]} Qc7 {[%emt 0:00:33]} 19. Rd3 {[%emt 0:01:23]} h6 {[%emt 0:05:39]} 20. Bh4 {[%emt 0:02:04]} Nh5 {[%emt 0:04:00]} 21. Bxe7 {[%emt 0:04:16]} Qxe7 {[%emt 0:00:10]} 22. g3 {[%emt 0:00:26]} Nf6 {[%emt 0:00:34]} 23. Rad1 {[%emt 0:00:46]} Rc8 {[%emt 0:03:15]} 24. Ne5 {[%emt 0:01:15]} Qd6 {[%emt 0:01:17]} 25. Qe2 {[%emt 0:00:51]} b5 {[%emt 0:02:41]} 26. Rf3 {[%emt 0:12:32]} Qe7 {[%emt 0:02:15]} 27. cxb5 {[%emt 0:02:54]} cxb5 {[%emt 0:00:26]} 28. Qxb5 {[%emt 0:00:12]} Nd5 {[%emt 0:03:13]} 29. Qd7 {[%emt 0:04:57]} Qxd7 {[%emt 0:02:04]} 30. Nxd7 {[%emt 0:02:36]} Rfd8 {[%emt 0:00:12]} 31. Nc5 {[%emt 0:00:32]} Nf6 {[%emt 0:00:25]} 32. Rfd3 {[%emt 0:01:53]} Rd5 {[%emt 0:00:48]} 33. Kg2 {[%emt 0:01:01]} Rcd8 {[%emt 0:01:49]} 34. f4 {[%emt 0:02:38]} Ne8 {[%emt 0:03:53]} 35. Ne4 {[%emt 0:01:17]} f6 {[%emt 0:09:45]} 36. Kf3 {[%emt 0:01:09]} Kf7 {[%emt 0:01:37]} 37. Nc3 {[%emt 0:04:23]} R5d7 {[%emt 0:00:24]} 38. d5 {[%emt 0:00:22]} exd5 {[%emt 0:03:58]} 39. Rxd5 {[%emt 0:00:39]} Rxd5 {[%emt 0:00:50]} 40. Rxd5 {[%emt 0:00:10]} Rxd5 {[%emt 0:00:30]} 41. Nxd5 {[%emt 0:30:03]} Ke6 {[%emt 0:30:14]} 42. Nc3 {[%emt 0:00:44]} f5 {[%emt 0:01:04]} 43. Ke3 {[%emt 0:01:10]} Nc7 {[%emt 0:01:19]} 44. Kd4 {[%emt 0:00:53]} Kd6 {[%emt 0:01:11]} 45. Kc4 {[%emt 0:00:45]} g5 {[%emt 0:05:26]} 46. Nb5+ {[%emt 0:02:44]} Nxb5 {[%emt 0:00:19]} 47. Kxb5 {[%emt 0:00:02]} gxf4 {[%emt 0:00:08]} 48. gxf4 {[%emt 0:00:06]} Kd5 {[%emt 0:00:12]} 49. Ka6 {[%emt 0:00:08]} Ke4 {[%emt 0:00:06]} 50. b5 {[%emt 0:00:13]} Kxf4 {[%emt 0:00:07]} 51. Kxa7 {[%emt 0:00:07]} 1-0

[Event "WSTCC-50 2024"]
[Site "Krakow"]
[Date "2024.07.05"]
[Round "4.22"]
[White "Haensel, Jean-Marie"]
[Black "Wilson, Edgar"]
[Result "0-1"]
[ECO "D53"]
[WhiteElo "1868"]
[BlackElo "1912"]
[Annotator "NA RC"]
[PlyCount "44"]
[EventDate "2024.07.01"]
[EventType "team-tourn"]
[EventCountry "POL"]
[SourceTitle "playchess.com"]
[Source "ChessBase"]
[SourceQuality "1"]
[TimeControl "40/5400+30:1800+30"]

1. d4 {[%emt 0:00:04]} d5 {[%emt 0:00:13]} 2. c4 {[%emt 0:00:12]} e6 {[%emt 0:00:30]} 3. Nc3 {[%emt 0:00:30]} Nf6 {[%emt 0:00:30]} 4. Bg5 Be7 5. cxd5 {[%emt 0:00:00]} exd5 {[%emt 0:00:00]} 6. Qc2 {[%emt 0:00:12]} h6 {[%emt 0:00:20]} 7. Bh4 {[%emt 0:00:30]} O-O {[%emt 0:00:23]} 8. e3 {[%emt 0:00:40]} Re8 {[%emt 0:03:11]} 9. Rc1 {[%emt 0:01:10]} c5 {[%emt 0:04:05]} 10. dxc5 {[%emt 0:01:59]} d4 {[%emt 0:04:44]} 11. Nd1 {[%emt 0:08:13]} Qa5+ {[%emt 0:05:34]} 12. Qd2 {[%emt 0:01:46]} Qxd2+ {[%emt 0:03:22]} 13. Kxd2 {[%emt 0:00:02]} Ne4+ {[%emt 0:01:20]} 14. Ke2 {[%emt 0:07:52]} Bxh4 {[%emt 0:00:51]} 15. f3 {[%emt 0:00:23]} Nf2 {[%emt 0:09:52]} 16. Nxf2 {[%emt 0:01:46]} Rxe3+ {[%emt 0:00:24]} 17. Kd2 {[%emt 0:05:10]} Bxf2 {[%emt 0:00:16]} 18. Nh3 {[%emt 0:01:54]} Bxh3 {[%emt 0:04:19]} 19. gxh3 {[%emt 0:00:04]} Nc6 {[%emt 0:01:57]} 20. Bg2 {[%emt 0:01:47]} Rae8 {[%emt 0:02:10]} 21. Rcd1 {[%emt 0:04:14]} Re2+ {[%emt 0:00:59]} 22. Kc1 {[%emt 0:00:15]} Be3+ {[%emt 0:00:27]} 0-1

[Event "WSTCC-50 2024"]
[Site "Krakow"]
[Date "2024.07.05"]
[Round "4.23"]
[White "Aird, Ian"]
[Black "Pieper, Thomas"]
[Result "0-1"]
[ECO "C47"]
[WhiteElo "1840"]
[BlackElo "2170"]
[Annotator "RC"]
[PlyCount "32"]
[EventDate "2024.07.01"]
[EventType "team-tourn"]
[EventCountry "POL"]
[SourceTitle "playchess.com"]
[Source "ChessBase"]
[SourceQuality "1"]
[TimeControl "40/5400+30:1800+30"]

1. e4 {[%emt 0:00:04]} e5 {[%emt 0:00:20]} 2. Nf3 {[%emt 0:00:08]} Nc6 {[%emt 0:00:12]} 3. Nc3 {[%emt 0:00:09]} Nf6 {[%emt 0:00:31]} 4. d4 {[%emt 0:00:08]} exd4 {[%emt 0:00:18]} 5. Nxd4 {[%emt 0:00:10]} Bb4 {[%emt 0:00:51]} 6. Nxc6 {[%emt 0:00:13]} bxc6 {[%emt 0:00:10]} 7. Bd3 {[%emt 0:00:14]} d5 {[%emt 0:00:19]} 8. exd5 {[%emt 0:00:10]} cxd5 {[%emt 0:00:13]} 9. O-O {[%emt 0:00:12]} O-O {[%emt 0:00:29]} 10. h3 {[%emt 0:00:06]} Rb8 {[%emt 0:05:03]} 11. Be3 {[%emt 0:00:37]} a5 {[%emt 0:02:34]} 12. a3 {[%emt 0:00:54]} Be7 {[%emt 0:02:07]} 13. Na4 {[%emt 0:07:14]} Bd7 {[%emt 0:07:57]} 14. c4 {[%emt 0:08:02]} Bc6 {[%emt 0:15:14]} 15. Rb1 {[%emt 0:11:28]} dxc4 {[%emt 0:01:17]} 16. Bxc4 {[%emt 0:01:01]} Qxd1 {[%emt 0:00:12]} 0-1

[Event "WSTCC-50 2024"]
[Site "Krakow"]
[Date "2024.07.05"]
[Round "4.23"]
[White "De Winter, Kevin"]
[Black "Kohnen, Marc"]
[Result "1/2-1/2"]
[ECO "C00"]
[WhiteElo "1803"]
[BlackElo "1837"]
[Annotator "NA RC"]
[PlyCount "61"]
[EventDate "2024.07.01"]
[EventType "team-tourn"]
[EventCountry "POL"]
[SourceTitle "playchess.com"]
[Source "ChessBase"]
[SourceQuality "1"]
[TimeControl "40/5400+30:1800+30"]

1. e4 {[%emt 0:00:02]} e6 {[%emt 0:00:11]} 2. d3 {[%emt 0:00:35]} c5 {[%emt 0:00:53]} 3. Nd2 {[%emt 0:02:05]} d5 {[%emt 0:01:39]} 4. Ngf3 {[%emt 0:00:15]} Nc6 {[%emt 0:01:18]} 5. g3 {[%emt 0:00:23]} d4 {[%emt 0:00:48]} 6. Bg2 {[%emt 0:05:49]} e5 {[%emt 0:03:48]} 7. O-O {[%emt 0:06:56]} Nge7 {[%emt 0:01:19]} 8. Nc4 {[%emt 0:05:50]} Ng6 {[%emt 0:01:46]} 9. a4 {[%emt 0:03:21]} Be7 {[%emt 0:01:20]} 10. h4 {[%emt 0:02:50]} Bg4 {[%emt 0:03:23]} 11. Qd2 {[%emt 0:04:40]} O-O {[%emt 0:01:52]} 12. Nh2 {[%emt 0:00:54]} Be6 {[%emt 0:02:21]} 13. b3 {[%emt 0:03:10]} Bf6 {[%emt 0:07:21]} 14. Ba3 {[%emt 0:09:49]} b6 {[%emt 0:01:53]} 15. h5 {[%emt 0:04:28]} Nh8 {[%emt 0:03:59]} 16. Qe2 {[%emt 0:01:49]} Qd7 {[%emt 0:04:32]} 17. Bc1 {[%emt 0:02:33]} Rac8 {[%emt 0:04:22]} 18. Bd2 {[%emt 0:01:03]} Qe7 {[%emt 0:03:20]} 19. Ng4 {[%emt 0:06:32]} Bxc4 {[%emt 0:03:07]} 20. Nxf6+ {[%emt 0:01:29]} Qxf6 {[%emt 0:00:09]} 21. bxc4 {[%emt 0:00:11]} g6 {[%emt 0:00:59]} 22. Qg4 {[%emt 0:02:44]} Qg7 {[%emt 0:02:17]} 23. h6 {[%emt 0:02:13]} Qf6 {[%emt 0:00:06]} 24. f4 {[%emt 0:00:41]} Rc7 {[%emt 0:03:28]} 25. f5 {[%emt 0:03:21]} Qd6 {[%emt 0:03:12]} 26. Bh3 {[%emt 0:02:24]} f6 {[%emt 0:01:06]} 27. fxg6 {[%emt 0:05:13]} Nxg6 {[%emt 0:01:02]} 28. Rf2 {[%emt 0:02:48]} Kh8 {[%emt 0:04:08]} 29. Qe6 {[%emt 0:03:55]} Qxe6 {[%emt 0:09:59]} 30. Bxe6 Nd8 31. Bd5 1/2-1/2

[Event "WSTCC-50 2024"]
[Site "Krakow"]
[Date "2024.07.05"]
[Round "4.24"]
[White "Scheckenbach, Franz"]
[Black "Heatlie, Douglas S"]
[Result "1-0"]
[ECO "C50"]
[WhiteElo "2072"]
[BlackElo "1834"]
[Annotator "NA RC"]
[PlyCount "61"]
[EventDate "2024.07.01"]
[EventType "team-tourn"]
[EventCountry "POL"]
[SourceTitle "playchess.com"]
[Source "ChessBase"]
[SourceQuality "1"]
[TimeControl "40/5400+30:1800+30"]

1. e4 {[%emt 0:00:07]} e5 {[%emt 0:00:08]} 2. Nf3 {[%emt 0:00:13]} Nc6 {[%emt 0:00:16]} 3. Bc4 {[%emt 0:00:14]} h6 {[%emt 0:01:17]} 4. c3 {[%emt 0:01:45]} d6 {[%emt 0:02:39]} 5. h3 {[%emt 0:04:27]} Nf6 {[%emt 0:01:09]} 6. Qe2 {[%emt 0:00:49]} Qe7 {[%emt 0:05:12]} 7. d3 {[%emt 0:06:02]} Bd7 {[%emt 0:02:50]} 8. b4 {[%emt 0:01:27]} a6 {[%emt 0:01:26]} 9. a4 {[%emt 0:02:16]} Be6 {[%emt 0:00:46]} 10. Na3 {[%emt 0:19:45]} g6 {[%emt 0:02:31]} 11. O-O {[%emt 0:00:41]} Bg7 {[%emt 0:00:38]} 12. Bxe6 {[%emt 0:04:17]} fxe6 {[%emt 0:01:59]} 13. Nc4 {[%emt 0:03:48]} O-O {[%emt 0:01:19]} 14. Nh4 {[%emt 0:08:12]} Qe8 {[%emt 0:03:45]} 15. g3 {[%emt 0:04:27]} g5 {[%emt 0:02:45]} 16. Ng2 {[%emt 0:00:20]} Qg6 {[%emt 0:02:23]} 17. Kh2 {[%emt 0:13:12]} Rf7 {[%emt 0:04:49]} 18. Nce3 {[%emt 0:03:06]} h5 {[%emt 0:02:17]} 19. f4 {[%emt 0:05:17]} exf4 {[%emt 0:11:41]} 20. gxf4 {[%emt 0:00:11]} Nxe4 {[%emt 0:15:47]} 21. dxe4 {[%emt 0:05:10]} Bxc3 {[%emt 0:05:51]} 22. f5 {[%emt 0:02:02]} exf5 {[%emt 0:00:21]} 23. exf5 {[%emt 0:00:07]} Qf6 {[%emt 0:02:39]} 24. Rb1 {[%emt 0:02:12]} h4 {[%emt 0:00:47]} 25. Ng4 {[%emt 0:02:31]} Qg7 {[%emt 0:01:10]} 26. Bb2 {[%emt 0:02:46]} Re7 {[%emt 0:06:36]} 27. Qc4+ {[%emt 0:00:36]} d5 {[%emt 0:02:04]} 28. Qxc3 {[%emt 0:02:35]} Qxc3 {[%emt 0:00:14]} 29. Bxc3 {[%emt 0:00:03]} d4 {[%emt 0:00:17]} 30. Bd2 {[%emt 0:00:27]} Re4 {[%emt 0:01:34]} 31. Nf6+ {[%emt 0:00:16]} 1-0

[Event "WSTCC-50 2024"]
[Site "Krakow"]
[Date "2024.07.05"]
[Round "4.24"]
[White "Kayser, Pierrot"]
[Black "Proudfoot, Andy"]
[Result "1/2-1/2"]
[ECO "E11"]
[WhiteElo "1764"]
[BlackElo "1607"]
[Annotator "NA RC"]
[PlyCount "30"]
[EventDate "2024.07.01"]
[EventType "team-tourn"]
[EventCountry "POL"]
[SourceTitle "playchess.com"]
[Source "ChessBase"]
[SourceQuality "1"]
[TimeControl "40/5400+30:1800+30"]

1. d4 {[%emt 0:00:05]} Nf6 {[%emt 0:00:27]} 2. Nf3 {[%emt 0:01:02]} e6 {[%emt 0:01:26]} 3. c4 {[%emt 0:01:39]} Bb4+ {[%emt 0:01:06]} 4. Bd2 {[%emt 0:01:46]} Nc6 {[%emt 0:06:43]} 5. a3 {[%emt 0:01:29]} Bxd2+ {[%emt 0:00:29]} 6. Nbxd2 {[%emt 0:00:22]} d5 {[%emt 0:07:25]} 7. e3 {[%emt 0:00:57]} O-O {[%emt 0:04:02]} 8. Bd3 {[%emt 0:02:27]} Re8 {[%emt 0:02:43]} 9. Qc2 {[%emt 0:07:41]} e5 {[%emt 0:08:27]} 10. dxe5 {[%emt 0:02:32]} Nxe5 {[%emt 0:04:16]} 11. Nxe5 {[%emt 0:02:30]} Rxe5 {[%emt 0:01:06]} 12. Nf3 {[%emt 0:00:47]} Rh5 {[%emt 0:03:55]} 13. O-O-O {[%emt 0:10:23]} Qe7 {[%emt 0:07:43]} 14. Kb1 {[%emt 0:07:11]} dxc4 {[%emt 0:02:42]} 15. Qxc4 {[%emt 0:06:43]} Bf5 {[%emt 0:05:22]} 1/2-1/2

[Event "WSTCC-50 2024"]
[Site "Krakow"]
[Date "2024.07.06"]
[Round "5.1"]
[White "Olafsson, Helgi"]
[Black "David, Alberto"]
[Result "1-0"]
[ECO "E18"]
[WhiteElo "2466"]
[BlackElo "2502"]
[Annotator "TA"]
[PlyCount "77"]
[EventDate "2024.07.01"]
[EventType "team-tourn"]
[EventCountry "POL"]
[SourceTitle "playchess.com"]
[Source "ChessBase"]
[SourceQuality "1"]
[TimeControl "40/5400+30:1800+30"]

{[%evp 25,77,16,19,10,14,0,0,0,12,8,19,12,68,65,55,37,55,10,67,75,81,87,91,35,30,58,49,57,131,122,136,121,166,156,330,353,573,579,594,555,795,787,972,933,1459,1362,29984,29985,29985,1602,2403,2268,29983,6211]} 1. Nf3 {[%emt 0:00:14]} Nf6 {[%emt 0:00:06]} 2. c4 {[%emt 0:00:07]} b6 {[%emt 0:00:33]} 3. g3 {[%emt 0:00:30]} Bb7 {[%emt 0:00:11]} 4. Bg2 {[%emt 0:00:09]} e6 {[%emt 0:00:22]} 5. O-O {[%emt 0:00:13]} Be7 {[%emt 0:00:08]} 6. d4 {[%emt 0:00:06]} O-O {[%emt 0:00:09]} 7. Nc3 {[%emt 0:00:09]} Ne4 {[%emt 0:00:13]} 8. Bd2 {[%emt 0:00:37]} Bf6 {[%emt 0:01:17]} 9. Rc1 {[%emt 0:06:38]} d6 {[%emt 0:03:24]} 10. d5 {[%emt 0:04:31]} Nxc3 {[%emt 0:10:36]} 11. Bxc3 {[%emt 0:00:12]} Bxc3 {[%emt 0:00:05]} 12. Rxc3 {[%emt 0:00:07]} e5 {[%emt 0:00:03]} 13. e4 {[%emt 0:10:06]} a5 {[%emt 0:08:37]} 14. Nd2 {[%emt 0:01:14]} Nd7 {[%emt 0:06:06]} 15. Bh3 {[%emt 0:06:41]} Nc5 {[%emt 0:03:21]} 16. b3 {[%emt 0:02:41] The position is equal.} Qf6 {[%emt 0:07:01]} 17. a3 {[%emt 0:01:17][%cal Ba2a3,Ba3b4][%mdl 32]} Qh6 {[%emt 0:00:07]} 18. Kg2 {[%emt 0:00:18]} c6 {[%emt 0:20:15]} (18... Bc8 $11 19. Bxc8 Rfxc8) 19. b4 $14 {[%emt 0:19:16]} axb4 {[%emt 0:00:30]} 20. axb4 {[%emt 0:01:17]} Na4 {[%emt 0:00:08]} 21. Re3 {[%emt 0:04:39] Threatens to win with Bd7.} cxd5 {[%emt 0:07:23]} (21... b5 $1 $11) 22. cxd5 {[%emt 0:00:40]} Bc8 {[%emt 0:00:13] Prevents Bd7.} 23. Bxc8 {[%emt 0:01:39]} Rfxc8 {[%emt 0:00:05] [#]} 24. Qa1 {[%emt 0:05:48]} (24. Qb1 $1 $16) 24... g6 {[%emt 0:08:52]} 25. Rc1 {[%emt 0:01:46] Against Rc2. aiming for Rxc8+.} Nc3 $1 {[%emt 0:00:52]} 26. Qb2 {[%emt 0:00:28]} Na4 {[%emt 0:02:30] [#]} (26... Ra2 $2 27. Qxa2 Nxa2 28. Rxc8+ Kg7 29. Nc4 $18) (26... Nb5 $1 $14) 27. Qb1 $1 $16 {[%emt 0:04:08]} b5 {[%emt 0:18:10]} 28. Rc6 {[%emt 0:02:15]} Qg5 {[%emt 0:02:09]} 29. Qd3 {[%emt 0:03:33]} (29. Rxd6 Qe7 30. Rc6 Rxc6 31. dxc6 Rc8) 29... Nb2 $2 {[%emt 0:00:41] This costs Black the game.} (29... Rcb8 $16 30. Rxd6 Qe7) 30. Qc2 $18 {[%emt 0:01:30]} ({Don't take} 30. Qxb5 $6 Nd1 31. Re2 Nc3) 30... Rxc6 {[%emt 0:00:39]} (30... Nc4 {was necessary.}) 31. dxc6 {[%emt 0:00:09]} (31. Qxc6 Qd8 32. Qxb5 Kg7 $18) 31... Na4 {[%emt 0:00:09]} 32. Qd3 {[%emt 0:00:23]} Nb2 {[%emt 0:00:56]} 33. Qxb5 {[%emt 0:01:36]} Nd1 {[%emt 0:00:15]} 34. Rd3 {[%emt 0:00:28]} Ra2 {[%emt 0:00:24]} 35. c7 {[%emt 0:04:02]} Rxd2 {[%emt 0:00:48]} 36. c8=Q+ {[%emt 0:00:10]} ({Less strong is} 36. c8=R+ Kg7 37. Rxd2 Qxd2 $14) 36... Kg7 {[%emt 0:00:03]} 37. Rxd2 {[%emt 0:01:12]} (37. Qbe8 $142 Rxf2+ 38. Kg1 Rf1+ 39. Kxf1 Qf6+ 40. Ke2 Qf2+ 41. Kxd1 Qf1+ 42. Kc2) 37... Qxd2 {[%emt 0:00:05]} 38. Qb6 {[%emt 0:00:04]} Qe1 {[%emt 0:00:56]} 39. Qc4 {[%emt 0:00:41] Weighted Error Value: White=0.08 (flawless) /Black=0.90.  Loses game:     	---       	Black=1      Mistake:       	White=1     	Black=4      Inaccurate:     	White=1     	Black=2      OK:         	White=10    	Black=7      Best:        	White=1     	---        Strong:       	---       	Black=1} (39. Qc2 $142 d5 40. exd5 Nc3 41. Qe3 Qxe3 42. fxe3 Nxd5 43. Qc5 Nxb4 44. Qxb4) 1-0

[Event "WSTCC-50 2024"]
[Site "Krakow"]
[Date "2024.07.06"]
[Round "5.1"]
[White "Belakovskaia, Anjelina"]
[Black "Plotkin, Victor"]
[Result "1/2-1/2"]
[ECO "C42"]
[WhiteElo "2171"]
[BlackElo "2264"]
[Annotator "RC"]
[PlyCount "77"]
[EventDate "2024.07.01"]
[EventType "team-tourn"]
[EventCountry "POL"]
[SourceTitle "playchess.com"]
[Source "ChessBase"]
[SourceQuality "1"]
[TimeControl "40/5400+30:1800+30"]

1. e4 {[%emt 0:00:04]} e5 {[%emt 0:00:06]} 2. Nf3 {[%emt 0:00:05]} Nf6 {[%emt 0:00:06]} 3. Nxe5 {[%emt 0:00:21]} d6 {[%emt 0:00:08]} 4. Nf3 {[%emt 0:00:09]} Nxe4 {[%emt 0:00:09]} 5. Nc3 {[%emt 0:00:35]} Nxc3 {[%emt 0:00:10]} 6. dxc3 {[%emt 0:00:03]} Be7 {[%emt 0:00:14]} 7. Be3 {[%emt 0:00:23]} Nc6 {[%emt 0:00:25]} 8. Qd2 {[%emt 0:00:56]} Be6 {[%emt 0:01:25]} 9. O-O-O {[%emt 0:00:57]} Qd7 {[%emt 0:01:11]} 10. Kb1 {[%emt 0:00:20]} a6 {[%emt 0:01:43]} 11. h3 {[%emt 0:01:24]} h6 {[%emt 0:01:34]} 12. Nd4 {[%emt 0:07:12]} Nxd4 {[%emt 0:02:12]} 13. Bxd4 {[%emt 0:00:03]} Rg8 {[%emt 0:04:00]} 14. f4 {[%emt 0:07:29]} c5 {[%emt 0:06:35]} 15. Be3 {[%emt 0:05:30]} O-O-O {[%emt 0:03:33]} 16. g4 {[%emt 0:05:29]} f5 {[%emt 0:02:11]} 17. g5 {[%emt 0:04:25]} Rge8 {[%emt 0:11:30]} 18. Qf2 {[%emt 0:08:28]} Bf8 {[%emt 0:09:54]} 19. Bg2 {[%emt 0:08:42]} Bxa2+ {[%emt 0:18:20]} 20. Kxa2 {[%emt 0:00:49]} Qe6+ {[%emt 0:00:02]} 21. Rd5 {[%emt 0:01:35]} Qxe3 {[%emt 0:00:25]} 22. Qxe3 {[%emt 0:00:19]} Rxe3 {[%emt 0:00:03]} 23. Rxf5 {[%emt 0:00:42]} hxg5 {[%emt 0:03:25]} 24. fxg5 {[%emt 0:05:18]} Be7 {[%emt 0:05:56]} 25. h4 {[%emt 0:03:39]} g6 {[%emt 0:06:07]} 26. Rf7 {[%emt 0:14:08]} d5 {[%emt 0:00:21]} 27. h5 {[%emt 0:09:16]} gxh5 {[%emt 0:00:28]} 28. Rxh5 {[%emt 0:03:19]} Rg8 {[%emt 0:06:43]} 29. Bxd5 {[%emt 0:04:31]} Rxg5 {[%emt 0:02:41]} 30. Rxg5 {[%emt 0:01:42]} Bxg5 {[%emt 0:00:08]} 31. Bxb7+ {[%emt 0:00:15]} Kd8 {[%emt 0:00:37]} 32. Bxa6 {[%emt 0:00:05]} Be7 {[%emt 0:00:51]} 33. Bd3 {[%emt 0:01:31]} Kc7 {[%emt 0:01:49]} 34. Kb3 {[%emt 0:02:52]} Kb6 {[%emt 0:00:45]} 35. Kc4 {[%emt 0:00:50]} Re5 {[%emt 0:00:43]} 36. Rf4 {[%emt 0:01:37]} Rh5 {[%emt 0:01:00]} 37. b4 {[%emt 0:01:10]} Rh4 {[%emt 0:00:17]} 38. bxc5+ {[%emt 0:00:48]} Kc7 {[%emt 0:00:13]} 39. Rd4 1/2-1/2

[Event "WSTCC-50 2024"]
[Site "Krakow"]
[Date "2024.07.06"]
[Round "5.1"]
[White "Baginskaite, Kamile"]
[Black "Csonkics, Tunde"]
[Result "1/2-1/2"]
[ECO "D18"]
[WhiteElo "2057"]
[BlackElo "1995"]
[Annotator "NA RC"]
[PlyCount "20"]
[EventDate "2024.07.01"]
[EventType "team-tourn"]
[EventCountry "POL"]
[SourceTitle "playchess.com"]
[Source "ChessBase"]
[SourceQuality "1"]
[TimeControl "40/5400+30:1800+30"]

1. Nf3 {[%emt 0:01:15]} d5 {[%emt 0:02:40]} 2. d4 {[%emt 0:00:17]} Nf6 {[%emt 0:00:24]} 3. c4 {[%emt 0:00:08]} c6 {[%emt 0:00:06]} 4. Nc3 {[%emt 0:00:46]} dxc4 {[%emt 0:00:06]} 5. a4 {[%emt 0:00:33]} Bf5 {[%emt 0:00:23]} 6. e3 {[%emt 0:08:25]} e6 {[%emt 0:00:06]} 7. Bxc4 {[%emt 0:00:04]} Bb4 {[%emt 0:00:06]} 8. O-O {[%emt 0:00:17]} O-O {[%emt 0:00:07]} 9. Qb3 {[%emt 0:12:37]} Qb6 {[%emt 0:01:09]} 10. Ne5 {[%emt 0:07:06]} Nbd7 {[%emt 0:05:40]} 1/2-1/2